Cogmind - Beta 12 @@@ ROGUE MODE // 2023.10.18 @ 17:19:48 Player: Figgis Result: Self-destructed Performance ------------- Evolutions (4) 2000 Regions Visited (12) 2400 Robots Destroyed (111) 555 Value Destroyed (3779) 3779 Prototype IDs (34) 680 Alien Tech Used (0) 0 Bonus (-145) -145 TOTAL SCORE: 9269 Bonus ------- High Alert Combat Kills 87 Aligned with FarCom 300 Friendly Fire -532 Cogmind --------- Core Integrity 445/850 Matter 274/300 Energy 150/150 System Corruption 6% Temperature Cool (0) Movement Walking (148) Ox1 Location -6/Lower Caves Parts ------- > --- POWER (2) -------- Micro Nuclear Core > --- PROPULSION (4) --- Carbon-VSS Exoskeleton > --- UTILITY (5) ------ Advanced Heat Sink High-capacity Storage Unit Advanced Targeting Computer > --- WEAPON (4) ------- (None) > --- INVENTORY (20) --- Improved Heat Sink Improved Heat Sink Advanced Heat Sink Recoil Stabilizer Peak State ------------ > --- POWER ------------ Reinforced Ion Engine > --- PROPULSION ------- Carbon-fiber Leg Advanced Myomer Leg > --- UTILITY ---------- Scrap Engine High-capacity Storage Unit Advanced Targeting Computer > --- WEAPON ----------- XL Autogun Array > --- INVENTORY -------- Cooled Ion Engine Light Deuterium Engine Light Nuclear Core Light Nuclear Core VSS Leg VSS Leg Superbattery Gravity Neutralizer Recoil Stabilizer Advanced Weapon Cycler Hardened Medium Armor Plating Hardened Heavy Armor Plating Reflective Plating Trap Reconfigurator High-powered Shotgun Heavy Assault Cannon [Rating: 76] Favorites ----------- Power Cooled Ion Engine Engine Cooled Ion Engine Power Core Micro Nuclear Core Propulsion Light Treads Treads Light Treads Leg Constructs Utility High-capacity Storage Unit Device Hardlight Generator Storage High-capacity Storage Unit Processor Advanced Targeting Computer Protection Reactive Plating Weapon Heavy Assault Rifle Energy Gun Constructs Ballistic Gun Heavy Assault Rifle Launcher Rocket Launcher Build | -11 -10 -10 -9 -9 -9 -8 -8 -8 -8 -6 -6 -6 ------- Run | Jun Mat Min Mat Min Exi Min Mat Sto Rec Fac Low Low Slots Evolved 8 | . . . 2 . . . 2 . . 4 . . Power 1 | . . . . . . . . . . 1 . . Propulsion 2 | . . . . . . . . . . 2 . . Utility 3 | . . . 2 . . . . . . 1 . . Weapon 2 | . . . . . . . 2 . . . . . Parts Attached 72 | 3 7 3 14 4 5 5 12 2 5 9 3 . Power 12 | 1 1 . 4 . . . 1 1 1 2 1 . Engine 9 | 1 1 . 4 . . . 1 1 1 . . . Core 3 | . . . . . . . . . . 2 1 . Reactor . | . . . . . . . . . . . . . Propulsion 15 | 2 2 . 2 1 . . 5 1 . 1 1 . Treads 10 | 2 2 . 2 1 . . 3 . . . . . Leg 5 | . . . . . . . 2 1 . 1 1 . Wheel . | . . . . . . . . . . . . . Hover . | . . . . . . . . . . . . . Flight . | . . . . . . . . . . . . . Utility 21 | . 1 2 4 1 2 4 3 . 1 2 1 . Device 9 | . . 1 1 . . 2 1 . 1 2 1 . Storage 4 | . 1 . 1 . 2 . . . . . . . Processor 1 | . . . . . . . 1 . . . . . Hackware . | . . . . . . . . . . . . . Protection 7 | . . 1 2 1 . 2 1 . . . . . Artifact . | . . . . . . . . . . . . . Weapon 24 | . 3 1 4 2 3 1 3 . 3 4 . . Energy Gun 3 | . . . . . . . . . . 3 . . Energy Cannon . | . . . . . . . . . . . . . Ballistic Gun 18 | . 3 1 4 . 2 1 3 . 3 1 . . Ballistic Cannon . | . . . . . . . . . . . . . Launcher 3 | . . . . 2 1 . . . . . . . Special Weapon . | . . . . . . . . . . . . . Impact Weapon . | . . . . . . . . . . . . . Slashing Weapon . | . . . . . . . . . . . . . Piercing Weapon . | . . . . . . . . . . . . . Special Melee Weapon . | . . . . . . . . . . . . . Unidentified Prototypes 6 | . . . 3 . . 1 1 . 1 . . . Parts Lost 29 | . . . 1 1 . 3 5 . 3 9 7 . Power 5 | . . . 1 . . . 1 . . 2 1 . Propulsion 5 | . . . . . . . 1 . 2 . 2 . Utility 9 | . . . . 1 . 2 3 . . 1 2 . Weapon 10 | . . . . . . 1 . . 1 6 2 . Highest Loss Streak 7 | . . . 1 1 . 2 5 . 2 5 7 . To Critical Strikes 1 | . . . . . . . . . . . 1 . Average Slot Usage (%) 80 | . 73 96 99 99 100 94 71 70 57 59 58 35 Engine 8 | . 14 14 10 11 11 11 8 8 8 1 4 . Core 1 | . . . . . . . . . . 6 5 6 Treads 12 | . 24 28 21 22 22 22 11 . . . . . Leg 3 | . . . . . . . 6 17 8 5 13 8 Device 11 | . . 2 18 11 11 15 14 9 9 12 11 6 Storage 9 | . 12 14 11 11 11 11 9 9 9 6 6 6 Processor 3 | . . . . . . . 3 9 9 6 6 6 Protection 9 | . . 8 14 21 22 12 9 9 . . . . Ballistic Gun 14 | . 22 28 21 11 13 10 9 9 12 14 . . Launcher 3 | . . . . 10 8 11 . . . . . . Naked Turns . | . . . . . . . . . . . . . Heaviest Build 78 | 3 16 27 41 47 78 78 76 69 66 64 63 47 Greatest Support 77 | 3 40 40 40 40 40 40 45 45 32 61 77 57 Greatest Overweight (x) 4 | . 4 . 1 1 1 1 1 2 4 1 1 1 Average Overweight (x) . | . . . . . 1 1 1 1 1 . . . Largest Inventory Capacity 20 | 5 8 8 10 10 20 20 20 20 20 20 20 20 Average Capacity 16 | 5 7 8 9 10 17 20 20 20 20 20 20 20 Most Carried 20 | 5 7 8 10 10 20 20 20 20 20 10 8 6 Average Carried 11 | 3 4 7 9 9 15 19 18 20 10 6 6 4 Final Capacity 20 | 5 8 8 10 10 20 20 20 20 20 20 20 20 Final Carried 20 | 5 4 8 10 10 20 20 20 20 10 8 6 4 Scrap Engine Consumption 55 | . . . . . . . . . 32 21 2 . Constructs Created 7 | . . . . . . . . . 3 3 1 . Constructs Modified 14 | . . . . . . . . . 4 10 . . Class Distribution -------------------- 60% | Mutant 28% | Construct 4% | Scavenger-Gunner 4% | Tank Dominant Class ---------------- Mutant | -10/Materials Mutant | -10/Mines Mutant | -9/Materials Mutant | -9/Mines Mutant | -9/Exiles Mutant | -8/Mines Tank | -8/Materials Scavenger-Gunner | -8/Storage Construct | -8/Recycling Construct | -6/Factory Mutant | -6/Lower Caves Mutant | -6/Lower Caves Resources | -11 -10 -10 -9 -9 -9 -8 -8 -8 -8 -6 -6 -6 ----------- Run | Jun Mat Min Mat Min Exi Min Mat Sto Rec Fac Low Low Matter Collected 3582 | 155 . 263 429 162 509 294 703 165 415 477 10 . Remotely . | . . . . . . . . . . . . . Salvage Created 4216 | . . 127 753 95 122 345 977 325 291 926 255 . Parts 271 | . . 11 65 4 3 26 74 21 5 51 11 . Haulers Intercepted 4 | . . . 2 . . . 1 1 . . . . Recyclers Shooed 9 | . . . . . . . . . 3 6 . . Parts Field Recycled . | . . . . . . . . . . . . . Retrieved Matter . | . . . . . . . . . . . . . Parts Self-Destructed 11 | . . . . . . . . . . . 11 . Prevented . | . . . . . . . . . . . . . Kills | -11 -10 -10 -9 -9 -9 -8 -8 -8 -8 -6 -6 -6 ------- Run | Jun Mat Min Mat Min Exi Min Mat Sto Rec Fac Low Low Combat Hostiles Destroyed 104 | . . 5 17 11 5 15 17 7 7 15 5 . Guns 85 | . . 5 17 3 2 7 17 7 7 15 5 . AOE 19 | . . . . 8 3 8 . . . . . . Classes Destroyed 17 | . . 2 4 1 . 3 4 . 1 2 . . Worker 2 | . . . . . . 1 . . . 1 . . Builder 3 | . . . . . . . 2 . . 1 . . Tunneler 1 | . . . 1 . . . . . . . . . Hauler 4 | . . . 2 . . . 1 1 . . . . Recycler 1 | . . . . . . . . . . 1 . . Operator 1 | . . . . . . . 1 . . . . . Watcher 8 | . . . 3 . . . 3 . . 2 . . Swarmer 24 | . . 3 6 . . 6 2 3 . 3 1 . Grunt 32 | . . 2 6 . . 7 8 1 . 7 1 . Brawler 2 | . . . . . . 1 . . . . 1 . Duelist 4 | . . . . . . 1 1 . . . 2 . Sentry 17 | . . . 5 2 . . 3 3 3 1 . . Specialist 2 | . . . . . . . 2 . . . . . Hunter 1 | . . . . . . . . . . 1 . . Programmer 7 | . . . . . . . . . 4 3 . . Heavy 1 | . . . . . . . 1 . . . . . Assembled 16 | . . . . 9 7 . . . . . . . Best Kill Streak 7 | . . 2 4 3 4 4 6 7 3 4 5 . Combat Bots Only 6 | . . 2 3 3 4 3 5 6 3 3 5 . Max Kills in Single Turn 3 | . . 1 1 3 3 2 2 1 1 2 1 . Gunslinging . | . . . . . . . . . . . . . Exploded 3 | . . . . 3 2 2 . . . . . . Melee . | . . . . . . . . . . . . . Uniques/NPCs Destroyed 1 | . . . . . 1 . . . . . . . 8R-AWN (-9/Exiles) Combat | -11 -10 -10 -9 -9 -9 -8 -8 -8 -8 -6 -6 -6 -------- Run | Jun Mat Min Mat Min Exi Min Mat Sto Rec Fac Low Low Damage Taken 6526 | . 10 125 415 309 617 353 638 49 1169 1936 890 15 Core 973 | . . 34 80 9 135 . 65 20 225 325 80 . Absorbed by Shields 512 | . . . 128 64 216 64 40 . . . . . Redirected to Shielding 103 | . . . 9 94 . . . . . . . . Regen/Repaired (Parts) 720 | . . . 152 . . . . . 167 301 100 . Core Remaining (%) 68 | 100 . 86 . . . 44 . . 43 . . . Volleys Fired 333 | . 1 11 49 29 39 20 39 13 46 70 16 . Largest 3 | . 2 2 2 2 2 2 1 1 2 3 2 . Hottest 189 | . 46 56 56 56 66 66 60 60 60 189 136 . Shots Fired 572 | . 2 22 98 42 78 38 39 13 62 149 29 . Gun 529 | . 2 22 98 29 67 19 39 13 62 149 29 . Cannon . | . . . . . . . . . . . . . Launcher 43 | . . . . 13 11 19 . . . . . . Special . | . . . . . . . . . . . . . Kinetic 454 | . 2 22 98 29 67 19 39 13 62 103 . . Thermal 75 | . . . . . . . . . . 46 29 . Explosive 43 | . . . . 13 11 19 . . . . . . Electromagnetic . | . . . . . . . . . . . . . Robot Hit Streak 27 | . 1 5 12 10 27 8 10 7 14 15 10 . Robot Miss Streak 5 | . 1 3 3 2 2 3 5 3 2 4 1 . Penetration Max 1 | . . . . . . . . . . 1 . . Secondary Targets 1 | . . . . . . . . . 1 . . . Max Gunslinging Chain 1 | . . . . . . . . . 1 . . . Shots Hit Robots 408 | . 1 12 61 26 56 20 38 13 55 102 24 . Core Hits 224 | . 1 6 29 22 28 21 38 9 10 49 11 . Critical Kills 2 | . . . 2 . . . . . . . . . Critical Parts Destroyed 2 | . . . . 1 1 . . . . . . . Critical Strikes 8 | . . . 2 1 1 . . . . 1 3 . Burn 4 | . . . . . . . . . . 1 3 . Destroy 4 | . . . 2 1 1 . . . . . . . Melee Attacks . | . . . . . . . . . . . . . Impact . | . . . . . . . . . . . . . Slashing . | . . . . . . . . . . . . . Piercing . | . . . . . . . . . . . . . Sneak Attacks . | . . . . . . . . . . . . . Combat Hostiles . | . . . . . . . . . . . . . Follow-up Attacks . | . . . . . . . . . . . . . Damage Inflicted 10649 | . 13 225 1061 724 1357 1264 1874 455 1250 1967 459 . Guns 8798 | . 13 225 1061 286 951 263 1874 455 1250 1961 459 . Cannons . | . . . . . . . . . . . . . Explosions 1845 | . . . . 438 406 1001 . . . . . . Melee . | . . . . . . . . . . . . . Ramming 6 | . . . . . . . . . . 6 . . Kinetic 7699 | . 13 225 1061 286 951 263 1874 455 1250 1321 . . Thermal 1099 | . . . . . . . . . . 640 459 . Explosive 1845 | . . . . 438 406 1001 . . . . . . Electromagnetic . | . . . . . . . . . . . . . Impact . | . . . . . . . . . . . . . Slashing . | . . . . . . . . . . . . . Piercing . | . . . . . . . . . . . . . Highest Corruption 7 | . 5 5 . . . . . . 7 6 6 6 Average Corruption 5 | . 4 5 . . . . . . 6 3 6 6 Corruption Purged . | . . . . . . . . . . . . . Corruption Blocked . | . . . . . . . . . . . . . Effects 98 | . 1 24 . . . . . . 35 21 15 2 Message Errors 20 | . . 2 . . . . . . 12 2 3 1 Matter Fused 18 | . . 2 . . . . . . 5 9 1 1 Heat Flow Errors 13 | . . 6 . . . . . . 3 1 3 . Energy Discharges 16 | . . 6 . . . . . . 5 4 1 . Parts Rejected 2 | . . . . . . . . . . . 2 . Parts Fused 1 | . . . . . . . . . . 1 . . Data Loss (minor) 15 | . 1 5 . . . . . . 4 2 3 . Data Loss (major) 6 | . . 1 . . . . . . 4 1 . . Misfires 3 | . . 1 . . . . . . . 1 1 . Alerts 1 | . . . . . . . . . . . 1 . Weapon Failures 3 | . . 1 . . . . . . 2 . . . Overload Shots . | . . . . . . . . . . . . . Overflow Damage 43 | . . . . . 25 18 . . . . . . Projectiles . | . . . . . . . . . . . . . Explosions 43 | . . . . . 25 18 . . . . . . Melee . | . . . . . . . . . . . . . Knockbacks . | . . . . . . . . . . . . . Impact . | . . . . . . . . . . . . . Kinetic . | . . . . . . . . . . . . . Secondary . | . . . . . . . . . . . . . Self-Inflicted Damage 224 | . . . . 91 46 87 . . . . . . Shots 8 | . . . . 3 1 4 . . . . . . Rammed . | . . . . . . . . . . . . . Targets Rammed 2 | . . . . . . . . . . 2 . . Kicked 2 | . . . . . . . . . . 2 . . Crushed . | . . . . . . . . . . . . . Highest Temperature 383 | . . 336 6 18 105 89 383 104 269 191 228 . Average Temperature 74 | . . 107 3 7 41 36 143 46 116 46 59 . Received Heat Transfer 1308 | . . 48 181 112 . 108 262 . 135 318 144 . Siege Activations . | . . . . . . . . . . . . . Robots Corrupted . | . . . . . . . . . . . . . Combat Hostiles . | . . . . . . . . . . . . . Parts Fried . | . . . . . . . . . . . . . Impact Corruptions . | . . . . . . . . . . . . . Robots Melted . | . . . . . . . . . . . . . Combat Hostiles . | . . . . . . . . . . . . . Parts Melted 6 | . . . . . . . . . . 2 4 . Heat Transferred 2553 | . . . . . . . . . . 1443 1110 . Parts Sabotaged . | . . . . . . . . . . . . . Parts Stolen 4 | . . . . . . . . . . . 1 3 Parts Stripped . | . . . . . . . . . . . . . Power Chain Reactions . | . . . . . . . . . . . . . Missiles Intercepted . | . . . . . . . . . . . . . Alert | -11 -10 -10 -9 -9 -9 -8 -8 -8 -8 -6 -6 -6 ------- Run | Jun Mat Min Mat Min Exi Min Mat Sto Rec Fac Low Low Peak Influence 547 | . 19 80 328 176 . 341 547 507 239 218 . . Initial 230 | . . 7 . 127 . . 74 230 197 60 . . Average 101 | . 1 26 209 58 . 97 187 359 69 73 . . Maximum Alert Level 2 | . . . 1 . . 1 2 2 1 1 . . Low Security (%) 83 | 100 100 100 26 100 . 94 72 . 98 94 . . Level 1 14 | . . . 73 . . 5 18 53 1 5 . . Level 2 1 | . . . . . . . 9 46 . . . . Level 3 . | . . . . . . . . . . . . . Level 4 . | . . . . . . . . . . . . . Level 5 . | . . . . . . . . . . . . . High Security . | . . . . . . . . . . . . . Max Security . | . . . . . . . . . . . . . Squads Dispatched 11 | . 1 1 1 . . . 3 . . 5 . . Investigation 2 | . . 1 . . . . 1 . . . . . Extermination 3 | . . . . . . . . . . 3 . . Reinforcement 6 | . 1 . 1 . . . 2 . . 2 . . Assault . | . . . . . . . . . . . . . Garrison . | . . . . . . . . . . . . . Intercept . | . . . . . . . . . . . . . Searches Triggered . | . . . . . . . . . . . . . Construction Impeded . | . . . . . . . . . . . . . Haulers Reinforced 2 | . . . . . . . . . . 2 . . Active Scanning Responses . | . . . . . . . . . . . . . Cargo Convoy Interrupts . | . . . . . . . . . . . . . Stealth | -11 -10 -10 -9 -9 -9 -8 -8 -8 -8 -6 -6 -6 --------- Run | Jun Mat Min Mat Min Exi Min Mat Sto Rec Fac Low Low Distress Signals 7 | . 1 1 1 1 . . 1 1 . 1 . . Communications Jammed . | . . . . . . . . . . . . . Distress Signals . | . . . . . . . . . . . . . Times Spotted 140 | . 5 6 25 12 5 15 24 8 7 22 8 3 Peak Tracking Total 8 | . 8 3 4 4 6 3 5 5 4 3 7 3 Tactical Retreats 12 | . . 1 3 2 . . . . 1 3 2 . Traps | -11 -10 -10 -9 -9 -9 -8 -8 -8 -8 -6 -6 -6 ------- Run | Jun Mat Min Mat Min Exi Min Mat Sto Rec Fac Low Low Traps Triggered 7 | . 4 . 1 . . . 1 1 . . . . Indirectly . | . . . . . . . . . . . . . Trap Hack Attempts . | . . . . . . . . . . . . . Triggered . | . . . . . . . . . . . . . Disarmed . | . . . . . . . . . . . . . Reprogrammed . | . . . . . . . . . . . . . Reused . | . . . . . . . . . . . . . Traps Extracted . | . . . . . . . . . . . . . Installed . | . . . . . . . . . . . . . Triggered . | . . . . . . . . . . . . . Machines | -11 -10 -10 -9 -9 -9 -8 -8 -8 -8 -6 -6 -6 ---------- Run | Jun Mat Min Mat Min Exi Min Mat Sto Rec Fac Low Low Machines Disabled 15 | . . . 1 2 6 . 2 3 . 1 . . Max in Single Turn 2 | . . . 1 2 2 . 1 1 . 1 . . Garrison Access 1 | . . . . . . . 1 . . . . . Machines Repaired . | . . . . . . . . . . . . . Machines Sabotaged . | . . . . . . . . . . . . . Overloaded Fab Kills . | . . . . . . . . . . . . . Hacking | -11 -10 -10 -9 -9 -9 -8 -8 -8 -8 -6 -6 -6 --------- Run | Jun Mat Min Mat Min Exi Min Mat Sto Rec Fac Low Low Machines Accessed 35 | . 3 1 10 . 2 . 5 3 7 4 . . Terminals 22 | . 3 . 6 . . . 4 3 4 2 . . Fabricators . | . . . . . . . . . . . . . Repair Stations 3 | . . . 2 . . . . . . 1 . . Recycling Units 5 | . . . 1 . . . . . 3 1 . . Scanalyzers 1 | . . . 1 . . . . . . . . . Garrison Access 1 | . . . . . . . 1 . . . . . Total Hacks 80 | . 9 1 22 . 2 . 13 7 19 7 . . Successful 39 | . 2 1 12 . 2 . 6 1 10 5 . . Failed 41 | . 7 . 10 . . . 7 6 9 2 . . Catastrophic 9 | . 1 . . . . . 2 3 2 1 . . Database Lockouts . | . . . . . . . . . . . . . Manual 37 | . 8 . 7 . 1 . 7 8 6 . . . Terminals 55 | . 9 . 12 . . . 11 7 13 3 . . Fabricators . | . . . . . . . . . . . . . Repair Stations 9 | . . . 7 . . . . . . 2 . . Recycling Units 9 | . . . 1 . . . . . 6 2 . . Scanalyzers 2 | . . . 2 . . . . . . . . . Garrison Access 2 | . . . . . . . 2 . . . . . Terminal Hacks 22 | . 2 1 4 . 2 . 5 1 6 1 . . Record 1 | . . . . . 1 . . . . . . . Robot Analysis 11 | . 1 . 1 . . . 3 . 6 . . . Open Door 1 | . . 1 . . . . . . . . . . Open DSF 1 | . . . . . . . . . . 1 . . Branch Access Points 3 | . . . 1 . . . 1 1 . . . . Alert Level 1 | . . . 1 . . . . . . . . . Locate Traps 1 | . 1 . . . . . . . . . . . Hauler Manifests 1 | . . . . . . . 1 . . . . . Zone Layout 1 | . . . 1 . . . . . . . . . EX-Prototype ID Bank 1 | . . . . . 1 . . . . . . . Fabricator Hacks . | . . . . . . . . . . . . . Repair Station Hacks 7 | . . . 5 . . . . . . 2 . . Scan Component 4 | . . . 3 . . . . . . 1 . . Repair 3 | . . . 2 . . . . . . 1 . . Recycling Unit Hacks 7 | . . . 1 . . . . . 4 2 . . Report Inventory 5 | . . . 1 . . . . . 3 1 . . Retrieve Components 2 | . . . . . . . . . 1 1 . . Scanalyzer 2 | . . . 2 . . . . . . . . . Insert Component 1 | . . . 1 . . . . . . . . . Analyze 1 | . . . 1 . . . . . . . . . Garrison Access Hacks 1 | . . . . . . . 1 . . . . . Seal Access 1 | . . . . . . . 1 . . . . . Unauthorized Hacks . | . . . . . . . . . . . . . Terminals . | . . . . . . . . . . . . . Fabricators . | . . . . . . . . . . . . . Repair Stations . | . . . . . . . . . . . . . Recycling Units . | . . . . . . . . . . . . . Scanalyzers . | . . . . . . . . . . . . . Garrison Access . | . . . . . . . . . . . . . Data Cores Recovered 1 | . . . . . . . 1 . . . . . Used . | . . . . . . . . . . . . . Hacking Detections 24 | . 3 . 7 . . . 4 3 5 2 . . Full Trace Events 1 | . . . . . . . . . 1 . . . Feedback Events . | . . . . . . . . . . . . . Feedback Blocked . | . . . . . . . . . . . . . Robot Schematics Acquired . | . . . . . . . . . . . . . Robots Built . | . . . . . . . . . . . . . Authchips . | . . . . . . . . . . . . . Time . | . . . . . . . . . . . . . Total Robot Build Rating . | . . . . . . . . . . . . . Part Schematics Acquired 1 | . . . 1 . . . . . . . . . Parts Built . | . . . . . . . . . . . . . Authchips . | . . . . . . . . . . . . . Time . | . . . . . . . . . . . . . Total Part Build Rating . | . . . . . . . . . . . . . Parts Repaired 3 | . . . 2 . . . . . . 1 . . Time 74 | . . . 58 . . . . . . 16 . . Parts Recycled . | . . . . . . . . . . . . . Recycled Matter . | . . . . . . . . . . . . . Retrieved Matter . | . . . . . . . . . . . . . Retrieved Components 12 | . . . . . . . . . 2 10 . . Parts Scanalyzed 1 | . . . 1 . . . . . . . . . Part Schematics Acquired 1 | . . . 1 . . . . . . . . . Parts Damaged . | . . . . . . . . . . . . . Bothacking | -11 -10 -10 -9 -9 -9 -8 -8 -8 -8 -6 -6 -6 ------------ Run | Jun Mat Min Mat Min Exi Min Mat Sto Rec Fac Low Low Used RIF Installer . | . . . . . . . . . . . . . Robots Hacked . | . . . . . . . . . . . . . Non-combat . | . . . . . . . . . . . . . Combat . | . . . . . . . . . . . . . Robot Hacks Applied . | . . . . . . . . . . . . . Relay Couplers Released . | . . . . . . . . . . . . . Fabnet Peak Effective % . | . . . . . . . . . . . . . Robots Rewired . | . . . . . . . . . . . . . Allies Hacked . | . . . . . . . . . . . . . Hacks Repelled . | . . . . . . . . . . . . . Allies | -11 -10 -10 -9 -9 -9 -8 -8 -8 -8 -6 -6 -6 -------- Run | Jun Mat Min Mat Min Exi Min Mat Sto Rec Fac Low Low Total Allies . | . . . . . . . . . . . . . Largest Group . | . . . . . . . . . . . . . Highest-Rated Group . | . . . . . . . . . . . . . Highest-Rated Ally . | . . . . . . . . . . . . . Total Orders . | . . . . . . . . . . . . . Ally Attacks . | . . . . . . . . . . . . . Total Damage . | . . . . . . . . . . . . . Kills . | . . . . . . . . . . . . . Allies Corrupted . | . . . . . . . . . . . . . Allies Melted . | . . . . . . . . . . . . . Intel | -11 -10 -10 -9 -9 -9 -8 -8 -8 -8 -6 -6 -6 ------- Run | Jun Mat Min Mat Min Exi Min Mat Sto Rec Fac Low Low Robot Analysis Total 9 | . 1 . 1 . . . 1 . 6 . . . Derelict Logs Recovered 4 | . . 2 . 1 . . . . . . 1 . Drone Launches . | . . . . . . . . . . . . . Drone Recoveries . | . . . . . . . . . . . . . Exploration | -11 -10 -10 -9 -9 -9 -8 -8 -8 -8 -6 -6 -6 ------------- Run | Jun Mat Min Mat Min Exi Min Mat Sto Rec Fac Low Low Turns Passed 10329 | 28 147 864 1170 1031 1152 1088 744 160 1827 1627 445 46 Spaces Moved 4358 | 34 94 502 441 384 414 411 279 76 604 750 333 36 Core 59 | 34 25 . . . . . . . . . . . Treads 2394 | . 69 502 441 384 414 411 173 . . . . . Legs 1812 | . . . . . . . 106 76 604 657 333 36 Wheels . | . . . . . . . . . . . . . Hover 93 | . . . . . . . . . . 93 . . Flight . | . . . . . . . . . . . . . Fastest Speed 50 | 50 50 160 160 165 245 245 190 190 183 86 103 103 Average Speed 199 | 50 137 160 198 241 245 245 224 190 245 164 118 126 Slowest Speed 476 | 50 250 160 240 245 245 245 250 260 476 203 169 148 Overloaded Moves . | . . . . . . . . . . . . . Propulsion Burnouts . | . . . . . . . . . . . . . Robots Hopped . | . . . . . . . . . . . . . Cave-ins Triggered . | . . . . . . . . . . . . . Exploration Rate (%) 48 | 3 24 74 61 82 68 95 31 19 90 20 55 13 Regions Visited 12 Branch Regions 8 Pre-discovered Areas 3 | . . 1 . 1 1 . . . . . . . Known Exits Taken 5 | . . . 1 . . 1 1 1 . . 1 . Unknown Exits Taken 7 | 1 1 1 . 1 1 . . . 1 1 . . Scrap Searched 3 | . . . . 1 . . . . . . 2 . Spaces Dug 14 | . . . . . 14 . . . . . . . Terrain Destroyed 387 | . . 1 2 98 74 161 35 14 2 . . . Melee . | . . . . . . . . . . . . . Projectile 59 | . . 1 2 . 4 1 35 14 2 . . . AOE 328 | . . . . 98 70 160 . . . . . . Terrain Rammed . | . . . . . . . . . . . . . Walls Destroyed . | . . . . . . . . . . . . . Machines Disabled . | . . . . . . . . . . . . . Actions | -11 -10 -10 -9 -9 -9 -8 -8 -8 -8 -6 -6 -6 --------- Run | Jun Mat Min Mat Min Exi Min Mat Sto Rec Fac Low Low Total 5545 | 44 110 542 638 446 476 457 404 90 917 1031 354 36 Wait 656 | . . 17 123 26 1 15 42 . 244 187 1 . Move 4346 | 33 93 501 440 383 413 410 278 75 603 749 332 36 Hop . | . . . . . . . . . . . . . Pick Up 78 | 8 6 7 6 2 12 4 17 . 3 11 2 . Fast Attach 14 | . 2 . 8 . . . 2 2 . . . . Attach 39 | 3 4 1 3 1 1 4 6 . 4 9 3 . Detach 3 | . . . . . . 1 . . 2 . . . Swap 19 | . 1 2 3 3 4 1 4 . 1 . . . Drop 55 | . 3 3 6 2 6 2 16 . 14 3 . . Fire 333 | . 1 11 49 29 39 20 39 13 46 70 16 . Melee . | . . . . . . . . . . . . . Ram . | . . . . . . . . . . . . . Kick 2 | . . . . . . . . . . 2 . . Crush . | . . . . . . . . . . . . . Escape Stasis . | . . . . . . . . . . . . . Rewire . | . . . . . . . . . . . . . Trap . | . . . . . . . . . . . . . Miscellaneous . | . . . . . . . . . . . . . Route ------- -11/Junkyard -10/Materials -10/Mines -9/Materials (discovered 2 exits: Mat / *Min) -9/Mines (discovered 2 exits: *Mat / *Exi) -9/Exiles -8/Mines -8/Materials (discovered 2 exits: [*Fac] / *Sto) -8/Storage -8/Recycling -6/Factory -6/Lower Caves -6/Lower Caves History --------- Turn | Location | Event 11 | -11/Junkyard | Discovered new exit (range 16) 29 | -11/Junkyard | Entered Materials 94 | -10/Materials | Discovered new exit (range 11) 176 | -10/Materials | Entered Mines 210 | -10/Mines | Learned location of 1 exit from Materials 216 | -10/Mines | Discovered new exit (range 8) 269 | -10/Mines | YI-UF0 nonchalantly dropped a Grenade Launcher on the ground 288 | -10/Mines | Met a Derelict shopkeep closing up shop 305 | -10/Mines | Build established: Mutant 521 | -10/Mines | A weapon hastily lodged in a ceiling crevice suddenly fell to the ground 739 | -10/Mines | Learned location of Mines (-8) 1040 | -10/Mines | Entered Materials 1040 | -9/Materials | Evolved 2 slots: Utility x2 1041 | -9/Materials | Identified exit to Materials 1454 | -9/Materials | Discovered new exit (range 7) 1596 | -9/Materials | Repaired Hvy. Assault Rifle 1624 | -9/Materials | Repaired Lgt. Treads 1667 | -9/Materials | Identified exit to Mines 2210 | -9/Materials | Entered Mines 2255 | -9/Mines | Assembled infested the area 2522 | -9/Mines | Received a Rocket Launcher from a helpful Derelict 2707 | -9/Mines | Learned location of Storage (-8) 2992 | -9/Mines | Joined a pair of Derelicts in attacking an 0b10 outpost 3054 | -9/Mines | Deemed a non-threat by the Exiles lab entrance 3054 | -9/Mines | Discovered new exit (range 5) 3108 | -9/Mines | Discovered exit to Materials (range 11) 3118 | -9/Mines | Learned Materials terminal intel 3241 | -9/Mines | Entered Exiles 3300 | -9/Exiles | Met 8R-AWN 3342 | -9/Exiles | Met EX-HEX 3477 | -9/Exiles | Met EX-DEC 3553 | -9/Exiles | Learned location of Zion (-7) 3791 | -9/Exiles | Met EX-BIN 3826 | -9/Exiles | Aligned with FarCom system 3828 | -9/Exiles | Given EX-Vault access code 3885 | -9/Exiles | Opened EX-Vault 3902 | -9/Exiles | Found Trap Reconfigurator 3912 | -9/Exiles | Found Superbattery 3916 | -9/Exiles | Found XL Autogun Array 3971 | -9/Exiles | Warned to stay clear of 0b10 Research branches 4062 | -9/Exiles | Attacked by the Exiles 4161 | -9/Exiles | Destroyed 8R-AWN 4360 | -9/Exiles | Core integrity fell below 50% 4363 | -9/Exiles | Discovered new exit (range 14) 4393 | -9/Exiles | Stole three prototypes: Superbattery, Trap Reconfigurator, XL Autogun Array 4393 | -9/Exiles | Entered Mines 5303 | -8/Mines | Discovered exit to Materials (range 8) 5481 | -8/Mines | Entered Materials 5481 | -8/Materials | Evolved 2 slots: Weapon x2 5482 | -8/Materials | Loaded intel: 12 terminal locations 5541 | -8/Materials | Identified exit to Storage 5770 | -8/Materials | Build established: Tank 5973 | -8/Materials | Lost 5 parts (1p1n3u) 6017 | -8/Materials | Discovered new exit (range 10) 6225 | -8/Materials | Entered Storage 6285 | -8/Storage | Build established: Scavenger-Gunner 6301 | -8/Storage | Identified exit to Recycling 6377 | -8/Storage | Used back door to open Recycling access 6385 | -8/Storage | Entered Recycling 6386 | -8/Recycling | Found Scrap Engine 6881 | -8/Recycling | Build established: Construct 7722 | -8/Recycling | Core integrity fell below 50% 8167 | -8/Recycling | Discovered new exit (range 15) 8212 | -8/Recycling | Entered Factory 8212 | -6/Factory | Evolved 4 slots: Power x1, Propulsion x2, Utility x1 8366 | -6/Factory | Repaired Rnf. Ion Engine 9399 | -6/Factory | Lost 5 parts (2p3w) 9776 | -6/Factory | Discovered new exit (range 6) 9839 | -6/Factory | Entered Lower Caves 9839 | -6/Lower Caves | Spotted M1-PKY(f) 9840 | -6/Lower Caves | Encountered a Master Thief 9844 | -6/Lower Caves | Trap Reconfigurator stolen by Master Thief 9900 | -6/Lower Caves | Identified exit to Lower Caves 9920 | -6/Lower Caves | Build established: Mutant 10051 | -6/Lower Caves | Encountered a Warlord checkpoint 10186 | -6/Lower Caves | Attracted the attention of an 0b10 outpost 10263 | -6/Lower Caves | Lost 7 parts (1p2n2u2w) 10284 | -6/Lower Caves | Entered another Lower Caves area 10284 | -6/Lower Caves | Spotted P8-43Z(f) 10284 | -6/Lower Caves | Spotted 7Y-M40(f) 10284 | -6/Lower Caves | Spotted HO-0JM(f) 10285 | -6/Lower Caves | Encountered a Master Thief 10285 | -6/Lower Caves | Encountered a Master Thief 10285 | -6/Lower Caves | Encountered a Master Thief 10285 | -6/Lower Caves | Superbattery stolen by Master Thief 10287 | -6/Lower Caves | Adv. Weapon Cycler stolen by Master Thief 10302 | -6/Lower Caves | Adv. Myomer Leg stolen by Master Thief 10330 | -6/Lower Caves | Self-destructed Last Messages --------------- 10214_ Acquired Mic. Nuclear Core. 10215_ Slug penetrates Wall. 10217_ Unknown Device fries itself beyond repair. 10218_ Slug penetrates Wall. 10223_ Thermal Plasma Construct/G destroyed. 10232_ Flexi-carbon Leg destroyed. 10251_ System corrupted: Imp. Heat Sink rejected. 10251_ Acquired Imp. Heat Sink. 10255_ Identified Adv. Heat Sink. 10258_ Slug penetrates 5I-5S1(S). 10258_ 5I-5S1(S) suffers critical hit (Destroy). 10261_ 5I-5S1(S) destroyed. 10273_ System corrupted: Component data lost. LOCATION=LOWER CAVES GOAL=ESCAPE 10285_ Superbattery stolen. 10287_ Adv. Weapon Cycler stolen. 10302_ Adv. Myomer Leg ripped off. 10303_ System corrupted: Matter fused (-6). 10318_ Q9G&1IV:CN1GVSBS#FYV>C:LBD#XI#EDC9#S Map ----- +----------------------------------------------------+ | | | | | | | | | | | | | | | | | ?????????????????????????????????????????????????? | | ?????????????????????????????????????????????????? | | ?????????????????????????????????????????????????? | | ?????????????????????????????????????????????????? | | ?????????????????????????????????????????????????? | | ?????????????????????????????????????????????????? | | ?????????????????????????????????????????????????? | | ?????????????????????????????????????????????????? | | ?????????????????????????????????????????????????? | | ?????????????????????????????????????????????????? | | ?????????????????????????????????????????????????? | | ?????????????????????????##??????????????????????? | | ?????????????????????????$???????????????????????? | | ???????????????????????? ????????????????????????? | | ??????????????#####??### ????????????????????????? | | ?????????????## ??# ??###????????????????????? | | ????????????## ??# ### ##???????????????????? | | ????????????# ?## #@ #???????????????????? | | ????????????# ?# #### ????????????? | | ????????????# ## #????????????? | | ????????????# #????????????? | | ????????????# ### #??????????? | | ?????????????????# ??????????? | | ?????????????????# ??????????? | | ?????????????????## ??????????? | | ??????????????????# ## ???????????? | | ?????????????????## #?????????????? | | ????????? ??### #?????????????? | | ???????? ## #?????????????? | | ???????# #????????????? | | ???????# ### #????????????? | | ???????# ##??# ?????????????? | | ????????# #### ##??## ??????####????? | | ?????????????# ## ##???? ##???# #????? | | ?????????????# ?## ###???? #### #????? | | ?????????????# ??## ###??? #????? | | ?????????????## ???## ##??? #????? | | ??????????????## ?????## ##??# ##???? | | ???????????????##??????## #??# #???? | | ????????????????????????#### #### #????? | | ???????????????????????##### ## #?????? | | ???????????????????????# #?????? | +----------------------------------------------------+ Best States ------------- Heat Dissipation 56 Energy Generation 27 Energy Capacity 367 Matter Stores 300 Matter Capacity 300 Sight Range 16 Terrain Scan Density 10 Additional Mass Support 12 Armor Coverage 375 Resistance: KI 20 Resistance: EX 25 Weapon Shielding 66 Evasion (%) 57 Targeting Accuracy 8 Recoil Reduction 2 Item Schematics ----------------- Hvy. Battle Rifle | -9/Materials | Scanalyzed Robot Schematics ------------------ None Fabricated ------------ Nothing Alien Tech Used ----------------- None Achievements -------------- None Challenges ------------ None Game ------ Seed LayeredDeliveryDiverter Manual? 0 Play Time 00:57:07 Cumulative 73.7 hours Start 2023.10.18 @ 16:22:11 End 2023.10.18 @ 17:19:48 Sessions 1 Manual Loads 0 Difficulty Rogue Special Mode None Game No. 122 Rogue 119 Adventurer 3 Explorer 0 Win Type - Total 0 Types 0/0/0/0/0/0/0/0/0 Lore% 34 Gallery% 51 Achievement% 36 Wizard Run 0 Options --------- ASCII 0 Keyboard 0 Movement Mouse Keybinds 0 Fullscreen 2 Font 18/SmallcapsGlow Map View 76x50 Tactical HUD 1 Map Filters NONE Filters NONE Steam 1 RUN: 49f2bfa8-625e-4244-af80-2a9831b19666